[Event "Titled Tuesday Blitz July 18 Early 2023"]
[White "Fonseca Manrique, Enrique"]
[Black "Xu, Yi"]
[WhiteFideId "5114330"]
[BlackFideId "8605564"]
[WhiteElo "2586"]
[BlackElo "2736"]
[Result "0-1"]
[Round "9"]
[TimeControl "180+2"]
[Date "2023.07.18"]
[WhiteClock "0:00:04"]
[BlackClock "0:00:22"]
[Board "40"]

1. e4 {[%clk 0:02:57]}  c5 {[%clk 0:02:59]} 2. Nf3 {[%clk 0:02:57]}  d6 {[%clk 0:02:59]} 3. d4 {[%clk 0:02:57]}  cxd4 {[%clk 0:03:00]} 4. Nxd4 {[%clk 0:02:58]}  Nf6 {[%clk 0:02:59]} 5. Nc3 {[%clk 0:02:59]}  a6 {[%clk 0:03:00]} 6. Bg5 {[%clk 0:02:59]}  e6 {[%clk 0:03:00]} 7. f4 {[%clk 0:03:00]}  Qb6 {[%clk 0:03:00]} 8. Qd3 {[%clk 0:02:59]}  Qxb2 {[%clk 0:02:59]} 9. Rb1 {[%clk 0:02:59]}  Qa3 {[%clk 0:02:58]} 10. f5 {[%clk 0:03:00]}  Nc6 {[%clk 0:02:46]} 11. fxe6 {[%clk 0:02:54]}  fxe6 {[%clk 0:02:44]} 12. Nxc6 {[%clk 0:02:29]}  bxc6 {[%clk 0:02:44]} 13. Be2 {[%clk 0:02:29]}  Qa5 {[%clk 0:02:40]} 14. Bxf6 {[%clk 0:02:04]}  gxf6 {[%clk 0:02:39]} 15. O-O {[%clk 0:02:05]}  Be7 {[%clk 0:02:34]} 16. Qh3 {[%clk 0:01:48]}  O-O {[%clk 0:02:29]} 17. Rf3 {[%clk 0:01:46]}  Kh8 {[%clk 0:02:28]} 18. Rg3 {[%clk 0:01:27]}  Ra7 {[%clk 0:02:11]} 19. Qh6 {[%clk 0:01:21]}  Rg8 {[%clk 0:02:07]} 20. Rxg8+ {[%clk 0:01:03]}  Kxg8 {[%clk 0:02:08]} 21. Rb3 {[%clk 0:00:42]}  Rb7 {[%clk 0:02:00]} 22. Nd5 {[%clk 0:00:35]}  Qe1+ {[%clk 0:01:47]} 23. Bf1 {[%clk 0:00:34]}  cxd5 {[%clk 0:01:39]} 24. Rg3+ {[%clk 0:00:34]}  Kf7 {[%clk 0:01:32]} 25. Qh5+ {[%clk 0:00:34]}  Kf8 {[%clk 0:01:32]} 26. Qxh7 {[%clk 0:00:34]}  Ke8 {[%clk 0:01:29]} 27. exd5 {[%clk 0:00:26]}  Kd7 {[%clk 0:01:04]} 28. Rg7 {[%clk 0:00:23]}  Qe3+ {[%clk 0:00:55]} 29. Kh1 {[%clk 0:00:23]}  exd5 {[%clk 0:00:54]} 30. g3 {[%clk 0:00:11]}  Rb1 {[%clk 0:00:53]} 31. Kg2 {[%clk 0:00:12]}  Bb7 {[%clk 0:00:41]} 32. Bd3 {[%clk 0:00:11]}  d4+ {[%clk 0:00:40]} 33. Kh3 {[%clk 0:00:12]}  Rb5 {[%clk 0:00:22]} 34. Bf5+ {[%clk 0:00:09]}  Rxf5 {[%clk 0:00:22]} 35. Qxf5+ {[%clk 0:00:10]}  Qe6 {[%clk 0:00:22]} 36. g4 {[%clk 0:00:10]}  Qxf5 {[%clk 0:00:21]} 37. gxf5 {[%clk 0:00:10]}  Be4 {[%clk 0:00:20]} 38. Kg4 {[%clk 0:00:10]}  Bxc2 {[%clk 0:00:21]} 39. h4 {[%clk 0:00:10]}  d3 {[%clk 0:00:21]} 40. Kf3 {[%clk 0:00:04]}  d2 {[%clk 0:00:22]} 0-1


[Site "https://www.chess.com"]

[Event "Titled Tuesday Blitz July 18 Early 2023"]
[White "Mikhailovsky, Vladimir"]
[Black "Bodnaruk, Anastasia"]
[WhiteFideId "34105414"]
[BlackFideId "4181751"]
[WhiteElo "2732"]
[BlackElo "2585"]
[Result "1-0"]
[Round "9"]
[TimeControl "180+2"]
[Date "2023.07.18"]
[WhiteClock "0:00:05"]
[BlackClock "0:00:01"]
[Board "41"]

1. e4 {[%clk 0:03:00]}  c5 {[%clk 0:02:59]} 2. Nf3 {[%clk 0:03:00]}  d6 {[%clk 0:03:00]} 3. d4 {[%clk 0:03:00]}  cxd4 {[%clk 0:03:00]} 4. Nxd4 {[%clk 0:03:01]}  Nf6 {[%clk 0:03:00]} 5. Nc3 {[%clk 0:03:01]}  a6 {[%clk 0:03:00]} 6. Rg1 {[%clk 0:03:01]}  e5 {[%clk 0:02:54]} 7. Nb3 {[%clk 0:03:01]}  h5 {[%clk 0:02:49]} 8. h3 {[%clk 0:02:45]}  Be6 {[%clk 0:02:43]} 9. Bg5 {[%clk 0:02:40]}  Nbd7 {[%clk 0:02:38]} 10. Qd2 {[%clk 0:02:39]}  Be7 {[%clk 0:02:37]} 11. O-O-O {[%clk 0:02:39]}  b5 {[%clk 0:02:35]} 12. a3 {[%clk 0:02:22]}  Rc8 {[%clk 0:02:34]} 13. f3 {[%clk 0:01:53]}  Bc4 {[%clk 0:02:01]} 14. h4 {[%clk 0:01:45]}  a5 {[%clk 0:01:48]} 15. Kb1 {[%clk 0:01:19]}  Qb6 {[%clk 0:01:40]} 16. Bxc4 {[%clk 0:01:10]}  bxc4 {[%clk 0:01:40]} 17. Nc1 {[%clk 0:00:58]}  Rb8 {[%clk 0:01:32]} 18. b3 {[%clk 0:00:58]}  Qb7 {[%clk 0:01:01]} 19. Ka2 {[%clk 0:00:51]}  O-O {[%clk 0:00:42]} 20. Nd5 {[%clk 0:00:28]}  Nxd5 {[%clk 0:00:41]} 21. Qxd5 {[%clk 0:00:29]}  Qxd5 {[%clk 0:00:33]} 22. Rxd5 {[%clk 0:00:30]}  f6 {[%clk 0:00:33]} 23. Be3 {[%clk 0:00:29]}  Rfc8 {[%clk 0:00:32]} 24. Kb2 {[%clk 0:00:27]}  cxb3 {[%clk 0:00:28]} 25. cxb3 {[%clk 0:00:26]}  a4 {[%clk 0:00:29]} 26. b4 {[%clk 0:00:25]}  Rc4 {[%clk 0:00:28]} 27. Na2 {[%clk 0:00:22]}  Rbc8 {[%clk 0:00:28]} 28. Rc1 {[%clk 0:00:22]}  Rxc1 {[%clk 0:00:26]} 29. Nxc1 {[%clk 0:00:23]}  f5 {[%clk 0:00:21]} 30. exf5 {[%clk 0:00:13]}  e4 {[%clk 0:00:21]} 31. fxe4 {[%clk 0:00:11]}  Nf6 {[%clk 0:00:21]} 32. Ra5 {[%clk 0:00:10]}  Nxe4 {[%clk 0:00:20]} 33. Bd4 {[%clk 0:00:11]}  Rc4 {[%clk 0:00:18]} 34. Ne2 {[%clk 0:00:11]}  Ng3 {[%clk 0:00:07]} 35. Nxg3 {[%clk 0:00:09]}  Rxd4 {[%clk 0:00:07]} 36. Rxa4 {[%clk 0:00:07]}  Rd2+ {[%clk 0:00:07]} 37. Kc3 {[%clk 0:00:07]}  Rxg2 {[%clk 0:00:07]} 38. Ne4 {[%clk 0:00:07]}  d5 {[%clk 0:00:07]} 39. Ra8+ {[%clk 0:00:06]}  Kf7 {[%clk 0:00:07]} 40. Ng5+ {[%clk 0:00:06]}  Bxg5 {[%clk 0:00:07]} 41. hxg5 {[%clk 0:00:07]}  Rxg5 {[%clk 0:00:07]} 42. b5 {[%clk 0:00:06]}  Rg3+ {[%clk 0:00:04]} 43. Kb4 {[%clk 0:00:05]}  Rg1 {[%clk 0:00:04]} 44. Kc5 {[%clk 0:00:05]}  Kf6 {[%clk 0:00:04]} 45. b6 {[%clk 0:00:04]}  Rb1 {[%clk 0:00:03]} 46. Kc6 {[%clk 0:00:03]}  Kxf5 {[%clk 0:00:03]} 47. b7 {[%clk 0:00:03]}  h4 {[%clk 0:00:03]} 48. b8=Q {[%clk 0:00:03]}  Rxb8 {[%clk 0:00:04]} 49. Rxb8 {[%clk 0:00:04]}  g5 {[%clk 0:00:04]} 50. a4 {[%clk 0:00:03]}  h3 {[%clk 0:00:04]} 51. a5 {[%clk 0:00:04]}  g4 {[%clk 0:00:04]} 52. a6 {[%clk 0:00:04]}  h2 {[%clk 0:00:05]} 53. Rh8 {[%clk 0:00:04]}  g3 {[%clk 0:00:05]} 54. a7 {[%clk 0:00:05]}  g2 {[%clk 0:00:05]} 55. a8=Q {[%clk 0:00:06]}  h1=Q {[%clk 0:00:05]} 56. Qf8+ {[%clk 0:00:06]}  Ke4 {[%clk 0:00:05]} 57. Qb4+ {[%clk 0:00:05]}  Ke5 {[%clk 0:00:06]} 58. Re8+ {[%clk 0:00:05]}  Kf5 {[%clk 0:00:04]} 59. Qf8+ {[%clk 0:00:05]}  Kg6 {[%clk 0:00:04]} 60. Re6+ {[%clk 0:00:05]}  Kg5 {[%clk 0:00:04]} 61. Qf6+ {[%clk 0:00:04]}  Kg4 {[%clk 0:00:04]} 62. Qg6+ {[%clk 0:00:04]}  Kf4 {[%clk 0:00:04]} 63. Rf6+ {[%clk 0:00:04]}  Ke3 {[%clk 0:00:05]} 64. Qg5+ {[%clk 0:00:04]}  Kd4 {[%clk 0:00:05]} 65. Qxd5+ {[%clk 0:00:05]}  Kc3 {[%clk 0:00:03]} 66. Rf3+ {[%clk 0:00:05]}  Kc2 {[%clk 0:00:04]} 67. Qb3+ {[%clk 0:00:05]}  Kd2 {[%clk 0:00:02]} 68. Qc3+ {[%clk 0:00:05]}  Ke2 {[%clk 0:00:02]} 69. Re3+ {[%clk 0:00:05]}  Kf2 {[%clk 0:00:02]} 70. Qd2+ {[%clk 0:00:05]}  Kf1 {[%clk 0:00:01]} 71. Re1# {[%clk 0:00:05]} 1-0


[Site "https://www.chess.com"]

[Event "Titled Tuesday Blitz July 18 Early 2023"]
[White "Liyanage, Ranindu Dilshan"]
[Black "Zavgorodniy, Sergiy"]
[WhiteFideId "9915834"]
[BlackFideId "14110148"]
[WhiteElo "2700"]
[BlackElo "2582"]
[Result "0-1"]
[Round "9"]
[TimeControl "180+2"]
[Date "2023.07.18"]
[WhiteClock "0:00:19"]
[BlackClock "0:01:00"]
[Board "43"]

1. e4 {[%clk 0:02:58]}  e5 {[%clk 0:02:56]} 2. Nf3 {[%clk 0:02:58]}  d6 {[%clk 0:02:54]} 3. d4 {[%clk 0:02:53]}  exd4 {[%clk 0:02:54]} 4. Nxd4 {[%clk 0:02:54]}  Nf6 {[%clk 0:02:54]} 5. Nc3 {[%clk 0:02:54]}  Be7 {[%clk 0:02:54]} 6. Bf4 {[%clk 0:02:55]}  O-O {[%clk 0:02:53]} 7. Qd2 {[%clk 0:02:54]}  Nc6 {[%clk 0:02:53]} 8. O-O-O {[%clk 0:02:53]}  Nxd4 {[%clk 0:02:52]} 9. Qxd4 {[%clk 0:02:53]}  Be6 {[%clk 0:02:52]} 10. f3 {[%clk 0:02:51]}  Nd7 {[%clk 0:02:50]} 11. Qd2 {[%clk 0:02:45]}  Nc5 {[%clk 0:02:33]} 12. g4 {[%clk 0:02:43]}  c6 {[%clk 0:02:31]} 13. a3 {[%clk 0:02:24]}  b5 {[%clk 0:02:26]} 14. Bxd6 {[%clk 0:02:13]}  Bxd6 {[%clk 0:02:25]} 15. Qxd6 {[%clk 0:02:14]}  Qb6 {[%clk 0:02:22]} 16. b4 {[%clk 0:01:54]}  Nb7 {[%clk 0:02:05]} 17. Qd4 {[%clk 0:01:44]}  c5 {[%clk 0:02:00]} 18. Qe3 {[%clk 0:01:32]}  Rfc8 {[%clk 0:01:48]} 19. Nxb5 {[%clk 0:01:23]}  a5 {[%clk 0:01:42]} 20. Rd6 {[%clk 0:01:11]}  Nxd6 {[%clk 0:01:41]} 21. Nxd6 {[%clk 0:00:54]}  Qxd6 {[%clk 0:01:41]} 22. b5 {[%clk 0:00:54]}  c4 {[%clk 0:01:35]} 23. Qc3 {[%clk 0:00:49]}  Qf4+ {[%clk 0:01:29]} 24. Kb2 {[%clk 0:00:48]}  a4 {[%clk 0:01:28]} 25. Be2 {[%clk 0:00:48]}  Rab8 {[%clk 0:01:26]} 26. Rd1 {[%clk 0:00:47]}  Rxb5+ {[%clk 0:01:25]} 27. Ka2 {[%clk 0:00:48]}  h6 {[%clk 0:01:24]} 28. h4 {[%clk 0:00:44]}  Rcb8 {[%clk 0:01:23]} 29. g5 {[%clk 0:00:39]}  hxg5 {[%clk 0:01:18]} 30. hxg5 {[%clk 0:00:40]}  Rxg5 {[%clk 0:01:13]} 31. Bf1 {[%clk 0:00:19]}  Qe5 {[%clk 0:01:12]} 32. Rd4 {[%clk 0:00:19]}  Rg1 {[%clk 0:01:04]} 33. Be2 {[%clk 0:00:17]}  Qxd4 {[%clk 0:01:00]} 34. Qxd4 {[%clk 0:00:18]}  c3+ {[%clk 0:01:00]} 35. Bc4 {[%clk 0:00:19]}  Rb2# {[%clk 0:01:00]} 0-1


[Site "https://www.chess.com"]

[Event "Titled Tuesday Blitz July 18 Early 2023"]
[White "Guliev, Logman"]
[Black "Koshulyan, Egor A."]
[WhiteFideId "13400061"]
[BlackFideId "24237000"]
[WhiteElo "2581"]
[BlackElo "2689"]
[Result "0-1"]
[Round "9"]
[TimeControl "180+2"]
[Date "2023.07.18"]
[WhiteClock "0:00:00"]
[BlackClock "0:00:33"]
[Board "44"]

1. e4 {[%clk 0:03:00]}  c5 {[%clk 0:03:00]} 2. Nf3 {[%clk 0:02:59]}  Nc6 {[%clk 0:03:00]} 3. Bb5 {[%clk 0:02:58]}  g5 {[%clk 0:03:00]} 4. Bxc6 {[%clk 0:02:56]}  dxc6 {[%clk 0:03:00]} 5. h3 {[%clk 0:02:54]}  g4 {[%clk 0:02:59]} 6. hxg4 {[%clk 0:02:52]}  Bxg4 {[%clk 0:03:00]} 7. d3 {[%clk 0:02:52]}  Bg7 {[%clk 0:03:00]} 8. Nc3 {[%clk 0:02:50]}  e6 {[%clk 0:02:45]} 9. Be3 {[%clk 0:02:49]}  Qb6 {[%clk 0:02:15]} 10. Na4 {[%clk 0:02:16]}  Qa5+ {[%clk 0:02:13]} 11. c3 {[%clk 0:02:17]}  b6 {[%clk 0:02:13]} 12. Qc2 {[%clk 0:02:00]}  Ne7 {[%clk 0:02:13]} 13. d4 {[%clk 0:01:49]}  Bxf3 {[%clk 0:02:00]} 14. gxf3 {[%clk 0:01:40]}  cxd4 {[%clk 0:02:00]} 15. Bd2 {[%clk 0:01:39]}  d3 {[%clk 0:01:42]} 16. Qb3 {[%clk 0:01:35]}  Qe5 {[%clk 0:01:42]} 17. Qb4 {[%clk 0:01:18]}  Ng6 {[%clk 0:01:23]} 18. O-O-O {[%clk 0:01:15]}  O-O-O {[%clk 0:01:09]} 19. Rdg1 {[%clk 0:01:04]}  b5 {[%clk 0:00:36]} 20. Rg5 {[%clk 0:00:50]}  f5 {[%clk 0:00:36]} 21. exf5 {[%clk 0:00:37]}  exf5 {[%clk 0:00:37]} 22. Nc5 {[%clk 0:00:32]}  Bf8 {[%clk 0:00:36]} 23. Bf4 {[%clk 0:00:13]}  Qxf4+ {[%clk 0:00:34]} 24. Qxf4 {[%clk 0:00:13]}  Nxf4 {[%clk 0:00:35]} 25. Rxf5 {[%clk 0:00:01]}  Bxc5 {[%clk 0:00:35]} 26. Rxf4 {[%clk 0:00:00]}  Bxf2 {[%clk 0:00:33]} 0-1


[Site "https://www.chess.com"]

[Event "Titled Tuesday Blitz July 18 Early 2023"]
[White "benny_aizenberg"]
[Black "Portela Peleteiro, Alberto"]
[BlackFideId "22276106"]
[WhiteElo "2651"]
[BlackElo "2568"]
[Result "1-0"]
[Round "9"]
[TimeControl "180+2"]
[Date "2023.07.18"]
[WhiteClock "0:00:07"]
[BlackClock "0:00:12"]
[Board "49"]

1. g4 {[%clk 0:03:00]}  c5 {[%clk 0:02:50]} 2. g5 {[%clk 0:03:01]}  Nc6 {[%clk 0:02:49]} 3. h4 {[%clk 0:03:00]}  d5 {[%clk 0:02:48]} 4. Bg2 {[%clk 0:02:59]}  e5 {[%clk 0:02:45]} 5. d3 {[%clk 0:02:56]}  Be6 {[%clk 0:02:42]} 6. Nc3 {[%clk 0:02:51]}  Qd7 {[%clk 0:02:42]} 7. e4 {[%clk 0:02:51]}  Nge7 {[%clk 0:02:39]} 8. f4 {[%clk 0:02:42]}  g6 {[%clk 0:02:29]} 9. Nf3 {[%clk 0:02:35]}  Bg7 {[%clk 0:02:27]} 10. h5 {[%clk 0:02:33]}  gxh5 {[%clk 0:02:23]} 11. f5 {[%clk 0:02:32]}  Nxf5 {[%clk 0:02:17]} 12. exf5 {[%clk 0:02:31]}  Bxf5 {[%clk 0:02:18]} 13. Nh4 {[%clk 0:01:52]}  Bg4 {[%clk 0:02:17]} 14. Bf3 {[%clk 0:01:50]}  O-O-O {[%clk 0:02:13]} 15. Bd2 {[%clk 0:01:33]}  e4 {[%clk 0:01:58]} 16. Bxg4 {[%clk 0:00:58]}  hxg4 {[%clk 0:01:59]} 17. O-O {[%clk 0:00:50]}  e3 {[%clk 0:01:46]} 18. Be1 {[%clk 0:00:35]}  h6 {[%clk 0:01:41]} 19. Nf5 {[%clk 0:00:25]}  Bd4 {[%clk 0:01:24]} 20. Kg2 {[%clk 0:00:16]}  Ne5 {[%clk 0:01:18]} 21. Bg3 {[%clk 0:00:16]}  Nf3 {[%clk 0:01:14]} 22. Rxf3 {[%clk 0:00:16]}  gxf3+ {[%clk 0:01:13]} 23. Qxf3 {[%clk 0:00:17]}  hxg5 {[%clk 0:01:13]} 24. Nd6+ {[%clk 0:00:16]}  Kb8 {[%clk 0:01:04]} 25. Nxf7+ {[%clk 0:00:16]}  Ka8 {[%clk 0:01:05]} 26. Nxh8 {[%clk 0:00:15]}  Rxh8 {[%clk 0:01:05]} 27. Bh2 {[%clk 0:00:11]}  Qe6 {[%clk 0:00:14]} 28. Nxd5 {[%clk 0:00:10]}  Be5 {[%clk 0:00:12]} 29. Bxe5 {[%clk 0:00:06]}  Qxe5 {[%clk 0:00:13]} 30. Rh1 {[%clk 0:00:06]}  Rxh1 {[%clk 0:00:12]} 31. Qf8+ {[%clk 0:00:06]}  Qb8 {[%clk 0:00:12]} 32. Nc7# {[%clk 0:00:07]} 1-0


[Site "https://www.chess.com"]

[Event "Titled Tuesday Blitz July 18 Early 2023"]
[White "ArtemDyachuk"]
[Black "Mohamed Anees M"]
[BlackFideId "35065815"]
[WhiteElo "2527"]
[BlackElo "2621"]
[Result "0-1"]
[Round "9"]
[TimeControl "180+2"]
[Date "2023.07.18"]
[WhiteClock "0:00:00"]
[BlackClock "0:00:43"]
[Board "54"]

1. e4 {[%clk 0:02:58]}  c5 {[%clk 0:03:00]} 2. Nf3 {[%clk 0:02:54]}  Nc6 {[%clk 0:03:00]} 3. d4 {[%clk 0:02:53]}  cxd4 {[%clk 0:03:01]} 4. Nxd4 {[%clk 0:02:54]}  Nf6 {[%clk 0:03:01]} 5. Nc3 {[%clk 0:02:54]}  d6 {[%clk 0:03:02]} 6. Bg5 {[%clk 0:02:50]}  e6 {[%clk 0:03:02]} 7. Qd3 {[%clk 0:02:49]}  Bd7 {[%clk 0:03:02]} 8. Be2 {[%clk 0:02:48]}  a6 {[%clk 0:03:01]} 9. O-O-O {[%clk 0:02:40]}  Be7 {[%clk 0:03:00]} 10. f4 {[%clk 0:02:22]}  Qc7 {[%clk 0:02:54]} 11. Rhe1 {[%clk 0:02:10]}  b5 {[%clk 0:02:52]} 12. Bf3 {[%clk 0:02:10]}  Rc8 {[%clk 0:02:51]} 13. Bxf6 {[%clk 0:01:48]}  gxf6 {[%clk 0:02:14]} 14. Bh5 {[%clk 0:01:20]}  b4 {[%clk 0:02:09]} 15. Nce2 {[%clk 0:01:19]}  Nxd4 {[%clk 0:02:01]} 16. Nxd4 {[%clk 0:01:19]}  Qa5 {[%clk 0:02:01]} 17. Kb1 {[%clk 0:01:16]}  Qxh5 {[%clk 0:02:01]} 18. f5 {[%clk 0:01:14]}  e5 {[%clk 0:01:57]} 19. Nf3 {[%clk 0:01:12]}  Bb5 {[%clk 0:01:57]} 20. Qe3 {[%clk 0:01:09]}  Rc5 {[%clk 0:01:44]} 21. h3 {[%clk 0:01:05]}  Bf8 {[%clk 0:01:44]} 22. Qb3 {[%clk 0:00:37]}  a5 {[%clk 0:01:27]} 23. a3 {[%clk 0:00:37]}  bxa3 {[%clk 0:01:23]} 24. bxa3 {[%clk 0:00:28]}  Bd7 {[%clk 0:00:49]} 25. c4 {[%clk 0:00:14]}  Be7 {[%clk 0:00:49]} 26. Re3 {[%clk 0:00:06]}  O-O {[%clk 0:00:46]} 27. g4 {[%clk 0:00:04]}  Qh6 {[%clk 0:00:46]} 28. h4 {[%clk 0:00:00]}  Ba4 {[%clk 0:00:43]} 0-1


[Site "https://www.chess.com"]

[Event "Titled Tuesday Blitz July 18 Early 2023"]
[White "Jimenez Almeida, Luis David"]
[Black "Stoyanov, Tsvetan"]
[WhiteFideId "22242244"]
[BlackFideId "2917173"]
[WhiteElo "2541"]
[BlackElo "2713"]
[Result "1-0"]
[Round "9"]
[TimeControl "180+2"]
[Date "2023.07.18"]
[WhiteClock "0:00:37"]
[BlackClock "0:00:16"]
[Board "59"]

1. e4 {[%clk 0:03:00]}  c5 {[%clk 0:02:57]} 2. Nc3 {[%clk 0:02:59]}  g6 {[%clk 0:02:56]} 3. g3 {[%clk 0:02:58]}  Bg7 {[%clk 0:02:56]} 4. Bg2 {[%clk 0:02:58]}  Nc6 {[%clk 0:02:57]} 5. d3 {[%clk 0:02:59]}  e6 {[%clk 0:02:58]} 6. Be3 {[%clk 0:02:59]}  d6 {[%clk 0:02:57]} 7. Qd2 {[%clk 0:02:59]}  Nd4 {[%clk 0:02:57]} 8. Nge2 {[%clk 0:02:54]}  h5 {[%clk 0:02:53]} 9. h3 {[%clk 0:02:47]}  Ne7 {[%clk 0:02:51]} 10. f4 {[%clk 0:02:40]}  Rb8 {[%clk 0:02:48]} 11. a4 {[%clk 0:02:38]}  O-O {[%clk 0:02:46]} 12. Nd1 {[%clk 0:02:28]}  a6 {[%clk 0:02:43]} 13. Nc1 {[%clk 0:02:26]}  b5 {[%clk 0:02:42]} 14. axb5 {[%clk 0:02:26]}  axb5 {[%clk 0:02:40]} 15. c3 {[%clk 0:02:27]}  Ndc6 {[%clk 0:02:41]} 16. Ne2 {[%clk 0:02:26]}  b4 {[%clk 0:02:40]} 17. O-O {[%clk 0:02:24]}  e5 {[%clk 0:02:33]} 18. f5 {[%clk 0:02:19]}  gxf5 {[%clk 0:02:29]} 19. exf5 {[%clk 0:02:02]}  f6 {[%clk 0:02:29]} 20. c4 {[%clk 0:01:54]}  Nd4 {[%clk 0:02:25]} 21. Nxd4 {[%clk 0:01:52]}  cxd4 {[%clk 0:02:24]} 22. Bh6 {[%clk 0:01:52]}  Nxf5 {[%clk 0:02:22]} 23. Bxg7 {[%clk 0:01:45]}  Kxg7 {[%clk 0:02:19]} 24. Ra7+ {[%clk 0:01:36]}  Rf7 {[%clk 0:02:18]} 25. Rxf7+ {[%clk 0:01:34]}  Kxf7 {[%clk 0:02:18]} 26. g4 {[%clk 0:01:25]}  hxg4 {[%clk 0:02:18]} 27. hxg4 {[%clk 0:01:25]}  Ng7 {[%clk 0:02:05]} 28. Qh6 {[%clk 0:01:18]}  Bxg4 {[%clk 0:01:56]} 29. Nf2 {[%clk 0:01:06]}  Bf5 {[%clk 0:01:47]} 30. Bd5+ {[%clk 0:01:02]}  Be6 {[%clk 0:01:26]} 31. Ne4 {[%clk 0:00:59]}  Bxd5 {[%clk 0:01:15]} 32. Rxf6+ {[%clk 0:00:55]}  Kg8 {[%clk 0:01:11]} 33. Ng5 {[%clk 0:00:44]}  Qxf6 {[%clk 0:01:01]} 34. Qxf6 {[%clk 0:00:45]}  Rf8 {[%clk 0:00:41]} 35. Qh6 {[%clk 0:00:43]}  Rf4 {[%clk 0:00:18]} 36. cxd5 {[%clk 0:00:39]}  Rg4+ {[%clk 0:00:18]} 37. Kf1 {[%clk 0:00:37]}  Rf4+ {[%clk 0:00:16]} 38. Ke1 {[%clk 0:00:37]} 1-0


[Site "https://www.chess.com"]

[Event "Titled Tuesday Blitz July 18 Early 2023"]
[White "Tregubov, Pavel V."]
[Black "LangesNasenhaar"]
[WhiteFideId "4115341"]
[WhiteElo "2623"]
[BlackElo "2453"]
[Result "1-0"]
[Round "9"]
[TimeControl "180+2"]
[Date "2023.07.18"]
[WhiteClock "0:00:39"]
[BlackClock "0:00:21"]
[Board "64"]

1. e4 {[%clk 0:03:00]}  d6 {[%clk 0:02:59]} 2. d4 {[%clk 0:02:59]}  Nf6 {[%clk 0:03:00]} 3. Nc3 {[%clk 0:02:59]}  e5 {[%clk 0:03:00]} 4. Nf3 {[%clk 0:02:59]}  Nbd7 {[%clk 0:03:00]} 5. Bc4 {[%clk 0:02:59]}  Be7 {[%clk 0:03:00]} 6. O-O {[%clk 0:02:58]}  c6 {[%clk 0:03:01]} 7. a4 {[%clk 0:02:57]}  h6 {[%clk 0:03:01]} 8. Re1 {[%clk 0:02:57]}  Qc7 {[%clk 0:03:01]} 9. Ba2 {[%clk 0:02:55]}  O-O {[%clk 0:03:01]} 10. Nh4 {[%clk 0:02:42]}  exd4 {[%clk 0:03:00]} 11. Qxd4 {[%clk 0:02:42]}  Nc5 {[%clk 0:02:59]} 12. Ng6 {[%clk 0:02:36]}  Re8 {[%clk 0:03:00]} 13. Bf4 {[%clk 0:02:25]}  Ne6 {[%clk 0:02:47]} 14. Nxe7+ {[%clk 0:02:26]}  Qxe7 {[%clk 0:02:43]} 15. Qxd6 {[%clk 0:02:24]}  Qxd6 {[%clk 0:02:30]} 16. Bxd6 {[%clk 0:02:23]}  Nd4 {[%clk 0:02:31]} 17. Rac1 {[%clk 0:02:06]}  Be6 {[%clk 0:02:14]} 18. Bxe6 {[%clk 0:01:57]}  Nxe6 {[%clk 0:02:14]} 19. e5 {[%clk 0:01:51]}  Nd7 {[%clk 0:02:11]} 20. Rcd1 {[%clk 0:01:50]}  Nb6 {[%clk 0:02:09]} 21. b3 {[%clk 0:01:47]}  Nf4 {[%clk 0:02:02]} 22. g3 {[%clk 0:01:42]}  Nfd5 {[%clk 0:02:01]} 23. Ne4 {[%clk 0:01:41]}  Nc8 {[%clk 0:01:58]} 24. c4 {[%clk 0:01:37]}  Nde7 {[%clk 0:01:58]} 25. f4 {[%clk 0:01:29]}  Nf5 {[%clk 0:01:53]} 26. Ba3 {[%clk 0:01:27]}  a5 {[%clk 0:01:40]} 27. Rd7 {[%clk 0:01:25]}  Rb8 {[%clk 0:01:35]} 28. Red1 {[%clk 0:01:21]}  b5 {[%clk 0:01:28]} 29. Rd8 {[%clk 0:01:10]}  Nb6 {[%clk 0:01:17]} 30. Rxe8+ {[%clk 0:01:06]}  Rxe8 {[%clk 0:01:17]} 31. cxb5 {[%clk 0:00:58]}  cxb5 {[%clk 0:01:17]} 32. axb5 {[%clk 0:00:56]}  Ne3 {[%clk 0:01:14]} 33. Rd6 {[%clk 0:00:53]}  Nbd5 {[%clk 0:01:01]} 34. Bc5 {[%clk 0:00:51]}  Rb8 {[%clk 0:00:56]} 35. b6 {[%clk 0:00:51]}  Rc8 {[%clk 0:00:39]} 36. Bxe3 {[%clk 0:00:47]}  Nxe3 {[%clk 0:00:38]} 37. b7 {[%clk 0:00:47]}  Rb8 {[%clk 0:00:38]} 38. Nc5 {[%clk 0:00:47]}  Nf5 {[%clk 0:00:21]} 39. Ra6 {[%clk 0:00:39]} 1-0


[Site "https://www.chess.com"]

[Event "Titled Tuesday Blitz July 18 Early 2023"]
[White "Fiorito, Francisco"]
[Black "favesaul"]
[WhiteFideId "180165"]
[WhiteElo "2599"]
[BlackElo "2444"]
[Result "0-1"]
[Round "9"]
[TimeControl "180+2"]
[Date "2023.07.18"]
[WhiteClock "0:00:03"]
[BlackClock "0:00:39"]
[Board "67"]

1. d4 {[%clk 0:02:58]}  Nf6 {[%clk 0:02:59]} 2. Nc3 {[%clk 0:02:58]}  d5 {[%clk 0:02:58]} 3. Bf4 {[%clk 0:02:57]}  a6 {[%clk 0:02:56]} 4. e3 {[%clk 0:02:55]}  e6 {[%clk 0:02:56]} 5. g4 {[%clk 0:02:56]}  h6 {[%clk 0:02:44]} 6. h4 {[%clk 0:02:49]}  c5 {[%clk 0:02:44]} 7. Qd2 {[%clk 0:02:40]}  Nc6 {[%clk 0:02:44]} 8. O-O-O {[%clk 0:02:36]}  cxd4 {[%clk 0:02:19]} 9. exd4 {[%clk 0:02:35]}  Nxg4 {[%clk 0:02:19]} 10. f3 {[%clk 0:02:25]}  Nf6 {[%clk 0:02:19]} 11. Bh3 {[%clk 0:02:24]}  Qa5 {[%clk 0:02:04]} 12. a3 {[%clk 0:02:18]}  b5 {[%clk 0:02:00]} 13. Na2 {[%clk 0:01:57]}  Qxd2+ {[%clk 0:01:59]} 14. Rxd2 {[%clk 0:01:55]}  Be7 {[%clk 0:01:49]} 15. Ne2 {[%clk 0:01:56]}  a5 {[%clk 0:01:42]} 16. Rg1 {[%clk 0:01:46]}  Nh5 {[%clk 0:01:35]} 17. Nac3 {[%clk 0:01:38]}  Ba6 {[%clk 0:01:34]} 18. Bg4 {[%clk 0:01:10]}  Nxf4 {[%clk 0:01:33]} 19. Nxf4 {[%clk 0:01:11]}  Bxh4 {[%clk 0:01:32]} 20. Bxe6 {[%clk 0:01:09]}  fxe6 {[%clk 0:01:19]} 21. Nxe6 {[%clk 0:00:42]}  Ne7 {[%clk 0:01:04]} 22. Rxg7 {[%clk 0:00:26]}  Rc8 {[%clk 0:00:55]} 23. Kb1 {[%clk 0:00:07]}  b4 {[%clk 0:00:54]} 24. axb4 {[%clk 0:00:07]}  axb4 {[%clk 0:00:55]} 25. Na4 {[%clk 0:00:08]}  Bf6 {[%clk 0:00:53]} 26. Rg1 {[%clk 0:00:06]}  Kf7 {[%clk 0:00:53]} 27. Nac5 {[%clk 0:00:06]}  Bb5 {[%clk 0:00:52]} 28. Re1 {[%clk 0:00:02]}  Nf5 {[%clk 0:00:51]} 29. c3 {[%clk 0:00:02]}  bxc3 {[%clk 0:00:51]} 30. bxc3 {[%clk 0:00:03]}  Bc4 {[%clk 0:00:52]} 31. Ra2 {[%clk 0:00:02]}  Bxa2+ {[%clk 0:00:51]} 32. Kxa2 {[%clk 0:00:03]}  Ra8+ {[%clk 0:00:51]} 33. Kb2 {[%clk 0:00:03]}  Rhb8+ {[%clk 0:00:51]} 34. Kc2 {[%clk 0:00:04]}  Ra2+ {[%clk 0:00:50]} 35. Kd3 {[%clk 0:00:05]}  Rbb2 {[%clk 0:00:50]} 36. c4 {[%clk 0:00:05]}  Rd2+ {[%clk 0:00:48]} 37. Kc3 {[%clk 0:00:05]}  Nxd4 {[%clk 0:00:47]} 38. Kb4 {[%clk 0:00:06]}  Nxe6 {[%clk 0:00:43]} 39. Nxe6 {[%clk 0:00:04]}  Rab2+ {[%clk 0:00:42]} 40. Kc5 {[%clk 0:00:05]}  dxc4 {[%clk 0:00:42]} 41. Nf4 {[%clk 0:00:05]}  c3 {[%clk 0:00:40]} 42. Ra1 {[%clk 0:00:05]}  c2 {[%clk 0:00:39]} 43. Ra7+ {[%clk 0:00:03]}  Be7+ {[%clk 0:00:39]} 0-1


[Site "https://www.chess.com"]